bitfinex/quotes_BTCUSD_20250211
["timestamp","ask_amount","ask_price","bid_price","bid_amount"]
[1739298922622,0.80393681,95975.0,95974.0,8.6e-07]
[1739298923892,0.80193681,95975.0,95974.0,8.6e-07]
[1739298924237,0.80393681,95975.0,95974.0,8.6e-07]
[1739298925640,0.80193681,95975.0,95974.0,8.6e-07]
[1739298926006,0.80393681,95975.0,95974.0,8.6e-07]
[1739298926861,0.80193681,95975.0,95974.0,8.6e-07]
[1739298927058,0.80593681,95975.0,95974.0,8.6e-07]
[1739298927310,0.80604341,95975.0,95974.0,8.6e-07]
[1739298927480,0.80204341,95975.0,95974.0,8.6e-07]
[1739298927682,0.80404341,95975.0,95974.0,8.6e-07]
[1739298927995,0.80393159,95975.0,95974.0,8.6e-07]
[1739298928621,0.80893159,95975.0,95974.0,8.6e-07]
[1739298928919,0.81709159,95975.0,95974.0,8.6e-07]
[1739298929120,0.81509159,95975.0,95974.0,8.6e-07]
[1739298929321,0.81409159,95975.0,95974.0,8.6e-07]
[1739298929895,0.81609159,95975.0,95974.0,8.6e-07]
[1739298930122,0.81009159,95975.0,95974.0,8.6e-07]
[1739298930501,0.81309159,95975.0,95974.0,8.6e-07]
[1739298930927,0.81509159,95975.0,95974.0,8.6e-07]
[1739298931551,0.83880836,95975.0,95974.0,8.6e-07]
[1739298932066,0.83580836,95975.0,95974.0,8.6e-07]
[1739298932224,0.83080836,95975.0,95974.0,8.6e-07]
[1739298932739,0.81564836,95975.0,95974.0,8.6e-07]
[1739298932944,0.74820836,95975.0,95974.0,8.6e-07]
[1739298933126,0.74204836,95975.0,95974.0,8.6e-07]
[1739298933340,0.69474836,95975.0,95974.0,8.6e-07]
[1739298933534,0.68974836,95975.0,95974.0,8.6e-07]
[1739298933885,0.69174836,95975.0,95974.0,8.6e-07]
[1739298934039,0.68974836,95975.0,95974.0,8.6e-07]
[1739298935263,0.68974836,95975.0,95974.0,0.00300086]
[1739298935463,0.3664531,95975.0,95974.0,0.00300086]
[1739298935681,0.3664531,95975.0,95974.0,0.18160451]
[1739298935908,0.0001066,95975.0,95974.0,0.19976496]
[1739298936025,0.0001066,95975.0,95974.0,0.20476496]
[1739298937289,0.0001066,95975.0,95974.0,0.36605696]
[1739298937490,0.0001066,95975.0,95974.0,0.20476496]
[1739298937927,0.0011066,95975.0,95974.0,0.21976496]
[1739298939114,0.0011066,95975.0,95974.0,0.19660451]
[1739298939315,0.0011066,95975.0,95974.0,0.20060451]
[1739298939519,0.0011066,95975.0,95974.0,0.19660451]
[1739298940558,0.0011066,95975.0,95974.0,0.20160451]
[1739298941017,0.0011066,95975.0,95974.0,0.40559651]
[1739298941215,0.0011066,95975.0,95974.0,0.5433497]
[1739298941362,0.208335,95999.0,95986.0,0.156272]
[1739298941556,0.156261,95993.0,95987.0,0.10250365]
[1739298941878,0.156263,95992.0,95987.0,0.10250365]
[1739298942480,0.1563716,95991.0,95987.0,0.10250365]
[1739298942797,0.1573716,95991.0,95988.0,0.01025037]
[1739298943009,0.1573716,95991.0,95989.0,0.10250365]
[1739298943865,0.1563716,95991.0,95989.0,0.10250365]
[1739298944068,0.1573716,95991.0,95989.0,0.10250365]
[1739298944268,0.0011066,95991.0,95989.0,0.10350365]
[1739298944472,0.0001066,95991.0,95989.0,0.10350365]
[1739298944694,0.0001066,95991.0,95989.0,0.11487905]
[1739298944891,0.0001066,95991.0,95989.0,0.12187905]
[1739298944892,0.0011066,95991.0,95989.0,0.12187905]
[1739298945270,0.1573706,95991.0,95989.0,0.12187905]
[1739298945466,0.0011066,95991.0,95989.0,0.12187905]
[1739298945760,0.0011066,95991.0,95989.0,0.11050365]
[1739298946136,0.156266,95990.0,95989.0,0.11050365]
[1739298946311,0.156266,95990.0,95989.0,0.008]
[1739298946719,0.0011066,95991.0,95989.0,0.11050365]
[1739298946881,0.0011066,95991.0,95990.0,0.10250365]
[1739298946882,0.0001066,95991.0,95990.0,0.10250365]
[1739298947093,0.0001066,95991.0,95990.0,0.14160092]
[1739298947290,0.0001066,95991.0,95990.0,0.10150365]
[1739298947950,0.0001066,95991.0,95990.0,0.10250365]
[1739298948150,0.0011066,95991.0,95990.0,0.10950365]
[1739298948525,0.0001066,95991.0,95990.0,0.10250365]
[1739298948731,0.0001066,95991.0,95990.0,0.14150082]
[1739298948917,0.0011066,95991.0,95990.0,0.15150082]
[1739298949545,0.0011066,95991.0,95990.0,0.15050082]
[1739298950010,0.0011066,95991.0,95990.0,0.14550082]
[1739298950218,0.0001066,95991.0,95990.0,0.14050082]
[1739298950365,0.0011066,95991.0,95990.0,0.15550082]
[1739298950571,0.0021066,95991.0,95990.0,0.16250082]
[1739298951703,0.0021066,95991.0,95990.0,0.12350365]
[1739298955110,0.0021066,95991.0,95990.0,0.40446965]
[1739298955313,0.0021066,95991.0,95990.0,0.42746965]
[1739298957422,0.156237,96008.0,95999.0,0.156251]
[1739298957625,0.156237,96008.0,96000.0,0.10250365]
[1739298957834,0.5214406,96008.0,96001.0,0.04670936]
[1739298958033,0.3652036,96008.0,96002.0,0.10250365]
[1739298959381,0.5214406,96008.0,96002.0,0.10250365]
[1739298959622,0.5224406,96008.0,96002.0,0.10250365]
[1739298959805,0.156239,96007.0,96002.0,0.10250365]
[1739298959954,0.156239,96007.0,96003.0,0.03034151]
[1739298960156,0.156239,96007.0,96004.0,0.10250365]
[1739298960703,0.156241,96005.0,96004.0,0.10250365]
[1739298961281,0.156241,96005.0,96004.0,0.10450365]
[1739298961889,0.15614893,96005.0,96004.0,0.10450365]
[1739298962359,0.156238,96007.0,96004.0,0.10450365]
[1739298962546,0.3653102,96008.0,96005.0,0.01045037]
[1739298962757,0.156238,96007.0,96006.0,0.10250365]
[1739298963064,0.3653102,96008.0,96006.0,0.10250365]
[1739298963267,0.0001066,96008.0,96006.0,0.25874265]
[1739298963704,0.0001066,96008.0,96006.0,0.10250365]
[1739298963912,0.0001066,96008.0,96007.0,0.0448384]
[1739298964119,0.0001066,96008.0,96007.0,0.10250365]
[1739298965614,0.0011066,96008.0,96007.0,0.10250365]
[1739298965815,0.0011066,96008.0,96007.0,0.10354509]
[1739298966015,0.0001066,96008.0,96007.0,0.18230365]
[1739298966215,0.0001066,96008.0,96007.0,0.28838562]
[1739298966382,0.0011066,96008.0,96007.0,0.30338562]
[1739298966778,0.0011066,96008.0,96007.0,0.32638562]
[1739298966983,0.0011066,96008.0,96007.0,0.358821]
[1739298967465,0.11619595,96013.0,96008.0,0.023]
[1739298967647,0.11619595,96013.0,96012.0,0.25873365]
[1739298967829,0.11619595,96013.0,96012.0,0.29116903]
[1739298968495,0.09622384,96013.0,96012.0,0.28173365]
[1739298968696,0.08646075,96013.0,96012.0,0.68283365]
[1739298968938,0.0001066,96022.0,96021.0,0.156215]
[1739298969112,0.0001066,96022.0,96021.0,0.25871865]
[1739298969314,0.0001066,96022.0,96021.0,0.29117263]
[1739298970272,0.0001066,96022.0,96021.0,0.30617263]
[1739298970727,0.0001066,96022.0,96021.0,0.14995763]
[1739298971039,0.0001066,96022.0,96021.0,0.34899819]
[1739298971299,0.156196,96034.0,96021.0,0.19278319]
[1739298971478,0.156196,96034.0,96023.0,0.10250365]
[1739298971678,0.2083605,96037.0,96024.0,0.03245398]
[1739298971898,0.208259,96034.0,96025.0,0.13495763]
[1739298972076,0.156198,96032.0,96026.0,0.0502323]
[1739298972286,0.208259,96034.0,96027.0,0.13495763]
[1739298972626,0.208259,96034.0,96028.0,0.03245398]
[1739298972840,0.5733567,96034.0,96029.0,0.10250365]
[1739298973000,0.3650977,96034.0,96029.0,0.10250365]
[1739298973403,0.0001065,96037.0,96029.0,0.10250365]
[1739298973806,0.1562965,96037.0,96030.0,0.03242219]
[1739298974012,0.156191,96036.0,96030.0,0.19662486]
[1739298974414,0.02662667,96031.0,96030.0,0.19662486]
[1739298974815,0.02662667,96031.0,96030.0,0.13492584]
[1739298976194,0.02662667,96031.0,96030.0,0.15692584]
[1739298976440,0.02662667,96031.0,96030.0,0.31312684]
[1739298976596,0.02662667,96031.0,96030.0,0.29112684]
[1739298976798,0.02662667,96031.0,96030.0,0.29712684]
[1739298977095,0.02662667,96031.0,96030.0,0.21605176]
[1739298977436,0.02662667,96031.0,96030.0,0.22305176]
[1739298977626,0.02662667,96031.0,96030.0,0.14192584]
[1739298978512,0.02662667,96031.0,96030.0,0.15692584]
[1739298978712,0.02662667,96031.0,96030.0,0.14992584]
[1739298978918,0.02662667,96031.0,96030.0,0.13492584]
[1739298979140,0.02662667,96031.0,96030.0,0.31312684]
[1739298979362,0.02662667,96031.0,96030.0,0.38609482]
[1739298979515,0.02662667,96031.0,96030.0,0.22989382]
[1739298979961,0.02662667,96031.0,96030.0,0.37909482]
[1739298980295,0.02662667,96031.0,96030.0,0.22889382]
[1739298980418,0.02662667,96031.0,96030.0,0.20789382]
[1739298980619,0.02662667,96031.0,96030.0,0.13492584]
[1739298981294,0.02662667,96031.0,96030.0,0.29112684]
[1739298981860,0.02662667,96031.0,96030.0,0.31312684]
[1739298982259,0.02662667,96031.0,96030.0,0.37382684]
[1739298982518,0.02363667,96031.0,96030.0,0.37382684]
[1739298982697,0.02363667,96031.0,96030.0,0.46786392]
[1739298983057,0.02363667,96031.0,96030.0,0.45986392]
[1739298983337,0.0001065,96037.0,96036.0,0.156191]
[1739298983626,0.0001065,96037.0,96036.0,0.29111684]
[1739298983919,0.0001065,96037.0,96036.0,0.13492584]
[1739298984152,0.0001065,96037.0,96036.0,0.20323823]
[1739298984889,0.0001065,96037.0,96036.0,0.13492584]
[1739298985474,0.0001065,96037.0,96036.0,0.29111684]
[1739298985699,0.04480122,96050.0,96036.0,0.13492584]
[1739298985847,0.04480122,96050.0,96037.0,0.10250365]
[1739298986048,0.156173,96048.0,96039.0,0.156186]
[1739298986292,0.156173,96048.0,96040.0,0.18636232]
[1739298986492,0.156173,96048.0,96041.0,0.03242219]
[1739298986630,0.156173,96048.0,96042.0,0.13492584]
[1739298986832,0.20097022,96050.0,96043.0,0.03242219]
[1739298987039,0.208214,96055.0,96044.0,0.13492584]
[1739298987239,0.208216,96054.0,96045.0,0.07188302]
[1739298987452,0.15617,96049.0,96046.0,0.13492584]
[1739298987665,0.3650374,96055.0,96046.0,0.13492584]
[1739298987666,0.3650374,96055.0,96047.0,0.03242219]
[1739298987898,0.156171,96049.0,96048.0,0.13492584]
[1739298988109,0.156171,96049.0,96048.0,0.15236451]
[1739298988759,0.156171,96049.0,96048.0,0.13492584]
[1739298989158,0.234271,96049.0,96048.0,0.14692584]
[1739298989515,0.234271,96049.0,96048.0,0.14992584]
[1739298989711,0.18048692,96055.0,96048.0,0.11750365]
[1739298989979,0.18048692,96055.0,96048.0,0.12925402]
[1739298990165,0.156171,96049.0,96048.0,0.12925402]
[1739298990871,0.156171,96049.0,96048.0,0.12625402]
[1739298991048,0.15617,96049.0,96048.0,0.11425402]
[1739298991471,0.15617,96049.0,96048.0,0.12225402]
[1739298991690,0.13468692,96055.0,96048.0,0.12225402]
[1739298991851,0.156166,96052.0,96049.0,0.033049]
[1739298992049,0.156166,96052.0,96050.0,0.1022752]
[1739298992438,0.0001066,96056.0,96050.0,0.1022752]
[1739298992866,0.1562666,96056.0,96050.0,0.1022752]
[1739298993060,0.156161,96055.0,96050.0,0.1022752]
[1739298993266,0.0001066,96056.0,96050.0,0.1022752]
[1739298993267,0.1562646,96056.0,96051.0,0.02047256]
[1739298993463,0.1562646,96056.0,96052.0,0.10250365]
[1739298993670,0.3651157,96056.0,96052.0,0.10250365]
[1739298993904,0.0001066,96056.0,96055.0,0.15616]
[1739298994105,0.0001066,96056.0,96055.0,0.25866365]
[1739298994300,0.0001066,96056.0,96055.0,0.30997411]
[1739298995924,0.0001066,96056.0,96055.0,0.32497411]
[1739298996142,0.0001066,96056.0,96055.0,0.32997411]
[1739298996341,0.0001066,96056.0,96055.0,0.30997411]
[1739298996808,0.0001066,96056.0,96055.0,0.33097411]
[1739298997833,0.0001066,96056.0,96055.0,0.31597411]
[1739298998245,0.0001066,96056.0,96055.0,0.12350365]
[1739298998678,0.0001066,96056.0,96055.0,0.10250365]
[1739298998888,0.0001066,96056.0,96055.0,0.11750365]
[1739298999097,0.0001066,96056.0,96055.0,0.12450365]
[1739298999305,0.0001066,96056.0,96055.0,0.27366365]
[1739298999516,0.0001066,96056.0,96055.0,0.31504902]
[1739298999720,0.0001066,96056.0,96055.0,0.35551589]
[1739299000145,0.0001066,96056.0,96055.0,0.36251589]
[1739299000347,0.0001066,96056.0,96055.0,0.35551589]
[1739299000726,0.0001066,96056.0,96055.0,0.36251589]
[1739299001061,0.0001066,96056.0,96055.0,0.34751589]
[1739299001232,0.0001066,96056.0,96055.0,0.36251589]
[1739299001661,0.0001066,96056.0,96055.0,0.34751589]
[1739299001866,0.0001066,96056.0,96055.0,0.34051589]
[1739299002047,0.0001066,96056.0,96055.0,0.36251589]
[1739299002253,0.156147,96064.0,96056.0,0.156158]
[1739299002452,0.156144,96066.0,96057.0,0.33655384]
[1739299002854,0.156144,96065.0,96058.0,0.156155]
[1739299003054,0.156145,96064.0,96059.0,0.10250365]
[1739299003273,0.208189,96067.0,96059.0,0.10250365]
[1739299003714,0.156142,96066.0,96059.0,0.10250365]
[1739299003915,0.156142,96066.0,96060.0,0.18872217]
[1739299004072,0.156144,96065.0,96061.0,0.10250365]
[1739299004268,0.0002,96069.0,96061.0,0.10250365]
[1739299004470,0.156144,96066.0,96061.0,0.10250365]
[1739299004655,0.156147,96064.0,96062.0,0.03622838]
[1739299004850,0.156145,96064.0,96063.0,0.10250365]
[1739299005055,0.20819,96066.0,96063.0,0.10250365]
[1739299005295,0.156143,96066.0,96063.0,0.10250365]
[1739299005511,0.156145,96064.0,96063.0,0.10250365]
[1739299005689,0.156145,96064.0,96063.0,0.13397502]
[1739299005889,0.208188,96067.0,96063.0,0.13397502]
[1739299006093,0.156144,96065.0,96063.0,0.10250365]
[1739299006528,0.156144,96065.0,96063.0,0.11750365]
[1739299006703,0.208188,96067.0,96063.0,0.12250365]
[1739299007042,0.3651699,96069.0,96063.0,0.11750365]
[1739299007175,0.156144,96065.0,96064.0,0.04818657]
[1739299007376,0.156144,96065.0,96064.0,0.15069022]
[1739299007629,0.156144,96065.0,96064.0,0.10250365]
[1739299008301,0.5213079,96069.0,96064.0,0.10250365]
[1739299008528,0.156142,96067.0,96065.0,0.10250365]
[1739299008728,0.5213079,96069.0,96065.0,0.10250365]
[1739299008968,0.3651699,96069.0,96065.0,0.10250365]
[1739299009146,0.3651699,96069.0,96066.0,0.01225037]
[1739299009350,0.156139,96068.0,96067.0,0.10250365]
[1739299010742,0.3651699,96069.0,96067.0,0.10250365]
[1739299010947,0.156139,96068.0,96067.0,0.10250365]
[1739299011144,0.3651699,96069.0,96067.0,0.10250365]
[1739299011347,0.3651699,96069.0,96067.0,0.13111662]
[1739299011770,0.3651699,96069.0,96067.0,0.11750365]
[1739299012091,0.3651699,96069.0,96067.0,0.015]
[1739299012291,0.3651699,96069.0,96067.0,0.005]
[1739299012589,0.3651699,96069.0,96067.0,0.015]
[1739299012862,0.3651699,96069.0,96067.0,0.02]
[1739299014142,0.3651699,96069.0,96067.0,0.015]
[1739299014676,0.3651699,96069.0,96063.0,0.00022365]
[1739299014860,0.3651699,96069.0,96067.0,0.011]
[1739299015226,0.3651699,96069.0,96064.0,0.10250365]
[1739299015578,0.3651699,96069.0,96067.0,0.002]
[1739299015732,0.3651699,96069.0,96067.0,0.009]
[1739299015931,0.3651699,96069.0,96067.0,0.012]
[1739299016131,0.3651699,96069.0,96067.0,0.003]
[1739299016331,0.3651699,96069.0,96064.0,0.10250365]
[1739299016591,0.3651699,96069.0,96065.0,0.01027273]
[1739299017207,0.3651699,96069.0,96067.0,0.002]
[1739299018117,0.3651699,96069.0,96067.0,0.012]
[1739299018673,0.3651699,96069.0,96064.0,0.10250365]
[1739299019100,0.3651699,96069.0,96067.0,0.01]
[1739299019496,0.3651699,96069.0,96065.0,0.002]
[1739299019704,0.3651699,96069.0,96065.0,0.01027273]
[1739299021351,0.3651699,96069.0,96066.0,0.25864465]
[1739299021590,0.0002,96069.0,96068.0,0.156139]
[1739299021787,0.0002,96069.0,96068.0,0.25864265]
[1739299022013,0.0002,96069.0,96068.0,0.33012995]
[1739299022224,0.0002,96069.0,96068.0,0.46445621]
[1739299022628,0.0001066,96070.0,96068.0,0.46445621]
[1739299022629,0.0001066,96070.0,96069.0,0.179137]
[1739299022806,0.0001066,96070.0,96069.0,0.28164065]
[1739299023006,0.0001066,96070.0,96069.0,0.31416691]
[1739299023209,0.0001066,96070.0,96069.0,0.41667056]
[1739299023535,0.0001066,96070.0,96069.0,0.49547056]
[1739299023808,0.0001066,96077.0,96071.0,0.023]
[1739299024020,0.0001066,96077.0,96076.0,0.28162965]
[1739299024317,0.0001066,96077.0,96076.0,0.31415591]
[1739299024539,0.0001066,96077.0,96076.0,0.41665956]
[1739299025511,0.0001066,96077.0,96076.0,0.42365956]
[1739299025878,0.0001066,96077.0,96076.0,0.43865956]
[1739299026854,1.456e-05,96077.0,96076.0,0.48665956]
[1739299027058,1.456e-05,96077.0,96076.0,0.71545956]
[1739299027758,1.456e-05,96077.0,96076.0,0.70045956]
[1739299028015,1.456e-05,96077.0,96076.0,0.71545956]
[1739299028426,1.456e-05,96077.0,96076.0,0.69345956]
[1739299028834,1.456e-05,96077.0,96076.0,0.71545956]
[1739299029037,1.456e-05,96077.0,96076.0,0.71916245]
[1739299029428,1.456e-05,96077.0,96076.0,0.72616245]
[1739299031382,0.0001066,96087.0,96086.0,0.38491]
[1739299031598,0.0001066,96087.0,96086.0,0.57924691]
[1739299031875,0.0001066,96087.0,96086.0,0.60224691]
[1739299033184,0.0001066,96087.0,96086.0,0.60924691]
[1739299033813,0.0001066,96087.0,96086.0,0.62424691]
[1739299034545,0.0001066,96087.0,96086.0,0.59172065]
[1739299034747,0.0001066,96087.0,96086.0,0.51292065]
[1739299035149,0.156085,96101.0,96086.0,0.18381065]
[1739299035352,0.0226604,96102.0,96091.0,0.156101]
[1739299035563,0.0226604,96102.0,96086.0,0.230145]
[1739299035564,0.156091,96098.0,96092.0,0.25860265]
[1739299036170,0.156093,96097.0,96092.0,0.10250365]
[1739299036373,0.0226604,96102.0,96086.0,0.02]
[1739299036374,0.01,96091.0,96086.0,0.02]
[1739299036586,0.156106,96088.0,96087.0,0.10250365]
[1739299036821,0.166106,96088.0,96087.0,0.10250365]
[1739299037238,0.156119,96081.0,96072.0,0.156132]
[1739299037433,0.208149,96085.0,96073.0,0.10250365]
[1739299037640,0.156119,96081.0,96074.0,0.156129]
[1739299037964,0.156119,96081.0,96071.0,0.09099913]
[1739299037965,0.01,96086.0,96075.0,0.10250365]
[1739299038167,0.208151,96084.0,96076.0,0.156126]
[1739299038398,0.156113,96085.0,96078.0,0.156123]
[1739299038670,0.3749128,96085.0,96079.0,0.10250365]
[1739299038996,0.01,96085.0,96079.0,0.10250365]
[1739299039231,0.01,96086.0,96082.0,0.156116]
[1739299039434,0.01,96085.0,96083.0,0.10250365]
[1739299039610,0.156103,96091.0,96084.0,0.156113]
[1739299039806,0.156094,96096.0,96085.0,0.12550365]
[1739299040008,0.156095,96095.0,96089.0,0.156104]
[1739299040210,0.208099,96108.0,96086.0,0.02312769]
[1739299040211,0.01,96106.0,96091.0,0.023]
[1739299040394,0.0001066,96105.0,96092.0,0.10250365]
[1739299040596,0.01,96102.0,96092.0,0.10250365]
[1739299040793,0.0001066,96105.0,96092.0,0.10250365]
[1739299040794,0.0001066,96105.0,96102.0,0.156084]
[1739299041017,0.3649352,96105.0,96102.0,0.10250365]
[1739299041218,0.3649352,96105.0,96093.0,0.208131]
[1739299041219,0.3749352,96105.0,96103.0,0.10250365]
[1739299041421,0.15608,96104.0,96103.0,0.10250365]
[1739299041595,0.16608,96104.0,96103.0,0.10250365]
[1739299041820,0.213898,96093.0,96092.0,0.01]
[1739299042017,0.5887995,96093.0,96092.0,0.01]
[1739299042893,0.4327015,96093.0,96092.0,0.005]
[1739299043146,0.5887995,96093.0,96092.0,0.005]
[1739299044098,0.5887995,96093.0,96092.0,0.02]
[1739299045500,0.5787995,96093.0,96092.0,0.02]
[1739299045704,0.3649015,96093.0,96092.0,0.11750365]
[1739299045873,0.3649015,96093.0,96092.0,0.11425402]
[1739299046198,0.01,96100.0,96092.0,0.10250365]
[1739299046401,0.01,96100.0,96095.0,0.023]
[1739299046573,0.01,96100.0,96097.0,0.156091]
[1739299046739,0.01,96100.0,96098.0,0.10250365]
[1739299046950,0.01,96100.0,96098.0,0.25859365]
[1739299047791,0.01,96100.0,96098.0,0.10250365]
[1739299047994,0.01,96100.0,96098.0,0.10950365]
[1739299048363,0.01,96100.0,96098.0,0.26559365]
[1739299048766,0.0001066,96105.0,96099.0,0.20575927]
[1739299048963,0.0001066,96105.0,96100.0,0.10250365]
[1739299049240,0.0101066,96105.0,96101.0,0.156085]
[1739299049438,0.0001066,96105.0,96102.0,0.10250365]
[1739299049569,0.0001066,96105.0,96104.0,0.023]
[1739299049776,0.0001066,96105.0,96104.0,0.12550365]
[1739299050648,0.0001066,96105.0,96104.0,0.13950365]
[1739299051179,0.0001066,96105.0,96104.0,0.14550365]
[1739299051374,0.0001066,96105.0,96104.0,0.13950365]
[1739299051628,0.0001066,96105.0,96104.0,0.30027245]
[1739299052446,0.0001066,96105.0,96104.0,0.33268633]
[1739299052622,0.01,96125.0,96104.0,0.31868633]
[1739299052829,0.02,96125.0,96118.0,0.156056]
[1739299053021,0.3747624,96125.0,96124.0,0.156048]
[1739299053230,0.3647448,96129.0,96124.0,0.10250365]
[1739299053509,0.3647448,96129.0,96125.0,0.14916582]
[1739299053510,0.01,96127.0,96125.0,0.14916582]
[1739299053703,0.01,96127.0,96125.0,0.10250365]
[1739299054360,0.3647448,96129.0,96125.0,0.10250365]
[1739299054762,0.36221177,96129.0,96125.0,0.10250365]
[1739299055481,0.01,96127.0,96125.0,0.10250365]
[1739299055706,0.01,96127.0,96126.0,0.02395717]
[1739299055864,0.01,96127.0,96126.0,0.12646082]
[1739299056259,0.3647284,96133.0,96126.0,0.12646082]
[1739299056468,0.01,96137.0,96132.0,0.156034]
[1739299056724,0.01,96137.0,96133.0,0.15385843]
[1739299057479,0.01,96137.0,96134.0,0.156031]
[1739299057681,0.02,96141.0,96135.0,0.25853365]
[1739299057906,0.01,96141.0,96136.0,0.023]
[1739299058279,0.01,96141.0,96137.0,0.10250365]
[1739299058638,0.01044662,96141.0,96137.0,0.10250365]
[1739299059008,0.156022,96140.0,96137.0,0.10250365]
[1739299059208,0.01044662,96141.0,96137.0,0.10250365]
[1739299059471,0.00044662,96141.0,96137.0,0.10250365]
[1739299059762,0.00044662,96141.0,96139.0,0.023]
[1739299059996,0.00044662,96141.0,96140.0,0.28152565]
[1739299060724,0.00044662,96141.0,96140.0,0.12550365]
[1739299061140,0.00044662,96141.0,96140.0,0.09883698]
[1739299061337,0.00055312,96141.0,96140.0,0.09883698]
[1739299061546,0.00055312,96141.0,96140.0,0.15248831]
[1739299061741,0.00055312,96141.0,96140.0,0.11483698]
[1739299061943,0.00055312,96141.0,96140.0,0.26785898]
[1739299062897,0.00055312,96141.0,96140.0,0.25485898]
[1739299063172,0.00055312,96141.0,96140.0,0.27185898]
[1739299063344,0.00055312,96141.0,96140.0,0.33765218]
[1739299063645,0.00055312,96141.0,96140.0,0.32365218]
[1739299063846,0.00055312,96141.0,96140.0,0.32965218]
[1739299064046,0.00055312,96141.0,96140.0,0.33865218]
[1739299064549,0.00055312,96141.0,96140.0,0.26185898]
[1739299064762,0.00055312,96141.0,96140.0,0.27685898]
[1739299067136,0.00055312,96141.0,96140.0,0.37695898]
[1739299067337,0.00055312,96141.0,96140.0,0.40927493]
[1739299067742,0.0001066,96145.0,96144.0,0.156015]
[1739299067960,0.0001066,96145.0,96144.0,0.31388402]
[1739299070440,0.0001066,96145.0,96144.0,0.33588402]
[1739299070677,0.0001066,96145.0,96144.0,0.32888402]
[1739299070862,0.0001066,96145.0,96144.0,0.31388402]
[1739299071084,0.0001065,96153.0,96152.0,0.156002]
[1739299071207,0.0001065,96153.0,96152.0,0.25850565]
[1739299071407,0.0001065,96153.0,96152.0,0.3138216]
[1739299071693,0.0001065,96153.0,96152.0,0.3074216]
[1739299072945,0.0001065,96153.0,96152.0,0.4367216]
[1739299073146,0.0001065,96153.0,96152.0,0.53922525]
[1739299073354,0.0001065,96153.0,96152.0,0.3294216]
[1739299073574,0.0001065,96153.0,96152.0,0.3224216]
[1739299073745,0.0001065,96153.0,96152.0,0.1418196]
[1739299074287,0.0101065,96153.0,96152.0,0.1498196]
[1739299074492,0.7395897,96153.0,96152.0,0.022]
[1739299074692,0.7395897,96153.0,96152.0,0.015]
[1739299074991,0.7395897,96153.0,96152.0,0.022]
[1739299075424,0.7395897,96153.0,96152.0,0.007]
[1739299076174,0.7395897,96153.0,96152.0,0.022]
[1739299076586,0.156014,96145.0,96144.0,4.942e-05]
[1739299076821,0.166014,96145.0,96144.0,4.942e-05]
[1739299078155,0.166014,96145.0,96144.0,0.00504942]
[1739299078745,0.166014,96145.0,96144.0,0.02004942]
[1739299079042,0.326014,96145.0,96144.0,0.02004942]
[1739299079302,0.404514,96145.0,96144.0,0.02004942]
[1739299079760,0.394514,96145.0,96144.0,0.02004942]
[1739299079961,0.394514,96145.0,96144.0,4.942e-05]
[1739299080388,0.394514,96145.0,96144.0,0.01104942]
[1739299080614,0.404514,96145.0,96144.0,0.00904942]
[1739299081125,0.01,96145.0,96144.0,0.11155307]
[1739299081331,0.4135887,96153.0,96144.0,0.11155307]
[1739299081332,0.01,96146.0,96145.0,0.156014]
[1739299081500,0.3747887,96153.0,96145.0,0.156014]
[1739299081501,0.01,96152.0,96145.0,0.25851765]
[1739299081705,0.01,96152.0,96144.0,0.02022707]
[1739299081706,0.3747887,96153.0,96149.0,0.156007]
[1739299081954,0.01,96151.0,96150.0,0.10250365]
[1739299082239,0.02,96151.0,96150.0,0.10250365]
[1739299082592,0.33269447,96153.0,96150.0,0.10250365]
[1739299082797,0.33269447,96153.0,96151.0,0.02615661]
[1739299083017,0.33269447,96153.0,96152.0,0.10250365]
[1739299083424,0.155991,96159.0,96152.0,0.10250365]
[1739299083634,0.155993,96158.0,96152.0,0.10250365]
[1739299083822,0.15,96162.0,96153.0,0.02735147]
[1739299084020,0.15,96162.0,96154.0,0.10250365]
[1739299084185,0.5146214,96162.0,96154.0,0.10250365]
[1739299084391,0.5146214,96162.0,96154.0,0.31050265]
[1739299084661,0.5146214,96162.0,96155.0,0.155996]
[1739299084843,0.5146214,96162.0,96156.0,0.10250365]
[1739299086027,0.5146214,96162.0,96156.0,0.11250365]
[1739299086486,0.50952941,96162.0,96156.0,0.10250365]
[1739299086659,0.50952941,96162.0,96157.0,0.02605037]
[1739299086860,0.50952941,96162.0,96158.0,0.10250365]
[1739299087487,0.50952941,96162.0,96156.0,0.01]
[1739299087679,0.50952941,96162.0,96156.0,0.11450365]
[1739299087880,0.155994,96157.0,96156.0,0.11250365]
[1739299088279,0.155994,96157.0,96156.0,0.10250365]
[1739299088487,0.50963581,96162.0,96157.0,0.01]
[1739299088697,0.3647278,96162.0,96161.0,0.155988]
[1739299088899,0.0001064,96162.0,96161.0,0.29091451]
[1739299089267,0.0145669,96163.0,96162.0,0.155986]
[1739299089471,0.0145669,96163.0,96162.0,0.29091251]
[1739299089670,0.0145669,96163.0,96162.0,0.2163602]
[1739299089897,0.0145669,96163.0,96162.0,0.3723462]
[1739299090299,0.0145669,96163.0,96162.0,0.3783462]
[1739299090702,0.0145669,96163.0,96162.0,0.3723462]
[1739299091143,0.0145669,96163.0,96162.0,0.3783462]
[1739299091395,0.0145669,96163.0,96162.0,0.3723462]
[1739299091611,0.0145669,96163.0,96162.0,0.4013462]
[1739299091852,0.0145669,96163.0,96162.0,0.4163462]
[1739299092354,0.0145669,96163.0,96162.0,0.4013462]
[1739299092587,0.0001065,96166.0,96165.0,0.155981]
[1739299092841,0.0001065,96166.0,96165.0,0.34664023]
[1739299093550,0.0001065,96166.0,96165.0,0.19065923]
[1739299093776,0.0001065,96166.0,96165.0,0.19465923]
[1739299093992,0.0001065,96166.0,96165.0,0.29090751]
[1739299094497,0.0001065,96166.0,96165.0,0.29790751]
[1739299094761,0.0001065,96166.0,96165.0,0.29090751]
[1739299094992,0.0001065,96166.0,96165.0,0.29690751]
[1739299095204,0.0001065,96166.0,96165.0,0.33490751]
[1739299095416,0.0001065,96166.0,96165.0,0.51399336]
[1739299095632,0.0001065,96166.0,96165.0,0.56259336]
[1739299096094,0.0001065,96166.0,96165.0,0.54159336]
[1739299096313,0.0001065,96166.0,96165.0,0.55659336]
[1739299096518,0.0001065,96166.0,96165.0,0.56359336]
[1739299096648,0.0001065,96166.0,96165.0,0.55659336]
[1739299096858,0.0001065,96166.0,96165.0,0.56359336]
[1739299097709,0.0001065,96166.0,96165.0,0.54859336]
[1739299098607,0.0001065,96166.0,96165.0,0.56359336]
[1739299099198,0.0001065,96166.0,96165.0,0.46770751]
[1739299099640,0.0001065,96166.0,96165.0,0.31290751]
[1739299099873,0.0001065,96166.0,96165.0,0.15692651]
[1739299100872,0.0001065,96166.0,96165.0,0.31290751]
[1739299101910,0.0001065,96166.0,96165.0,0.41760751]